[Event "Titled Tuesday Blitz April 4 Early 2023"]
[White "Samunenkov, Ihor"]
[Black "Janaszak, Dawid"]
[WhiteFideId "14187086"]
[BlackFideId "1119206"]
[WhiteElo "2457"]
[BlackElo "2220"]
[Result "1/2-1/2"]
[Round "05"]
[TimeControl "180+2"]
[Date "2023.04.04"]
[WhiteClock "0:00:03"]
[BlackClock "0:00:08"]

1. e4 {[%clk 0:03:00]}  c5 {[%clk 0:02:58]} 2. Nf3 {[%clk 0:03:00]}  Nc6 {[%clk 0:02:59]} 3. Bb5 {[%clk 0:03:01]}  e5 {[%clk 0:02:57]} 4. O-O {[%clk 0:03:00]}  Nge7 {[%clk 0:02:58]} 5. c3 {[%clk 0:02:57]}  g6 {[%clk 0:02:58]} 6. d4 {[%clk 0:02:51]}  cxd4 {[%clk 0:02:58]} 7. cxd4 {[%clk 0:02:52]}  exd4 {[%clk 0:02:58]} 8. Nxd4 {[%clk 0:02:48]}  Bg7 {[%clk 0:02:58]} 9. Be3 {[%clk 0:02:49]}  O-O {[%clk 0:02:57]} 10. Nc3 {[%clk 0:02:48]}  d5 {[%clk 0:02:55]} 11. exd5 {[%clk 0:02:24]}  Nxd5 {[%clk 0:02:54]} 12. Nxc6 {[%clk 0:02:24]}  bxc6 {[%clk 0:02:48]} 13. Nxd5 {[%clk 0:01:58]}  Qxd5 {[%clk 0:02:31]} 14. Qxd5 {[%clk 0:01:45]}  cxd5 {[%clk 0:02:32]} 15. Bc6 {[%clk 0:01:45]}  Rb8 {[%clk 0:02:32]} 16. Bxa7 {[%clk 0:01:37]}  Rxb2 {[%clk 0:02:32]} 17. Bxd5 {[%clk 0:01:38]}  Bb7 {[%clk 0:02:19]} 18. Bb3 {[%clk 0:01:28]}  Ra8 {[%clk 0:02:13]} 19. Rac1 {[%clk 0:01:11]}  Rxa7 {[%clk 0:02:08]} 20. Rc7 {[%clk 0:01:12]}  Be5 {[%clk 0:01:33]} 21. Rd7 {[%clk 0:01:08]}  Kh8 {[%clk 0:00:36]} 22. h4 {[%clk 0:00:48]}  h5 {[%clk 0:00:29]} 23. Rxf7 {[%clk 0:00:44]}  Bd4 {[%clk 0:00:27]} 24. Rd1 {[%clk 0:00:44]}  Rxf2 {[%clk 0:00:11]} 25. Rxf2 {[%clk 0:00:38]}  Bxf2+ {[%clk 0:00:12]} 26. Kxf2 {[%clk 0:00:39]}  Be4 {[%clk 0:00:12]} 27. g3 {[%clk 0:00:30]}  Kg7 {[%clk 0:00:12]} 28. Rd6 {[%clk 0:00:26]}  Bf5 {[%clk 0:00:12]} 29. Rb6 {[%clk 0:00:25]}  Rc7 {[%clk 0:00:11]} 30. a4 {[%clk 0:00:23]}  Rc3 {[%clk 0:00:12]} 31. a5 {[%clk 0:00:23]}  Be4 {[%clk 0:00:12]} 32. Rb4 {[%clk 0:00:18]}  Rf3+ {[%clk 0:00:10]} 33. Ke2 {[%clk 0:00:18]}  Bc6 {[%clk 0:00:10]} 34. Ba4 {[%clk 0:00:14]}  Bd5 {[%clk 0:00:08]} 35. Rd4 {[%clk 0:00:10]}  Ba8 {[%clk 0:00:07]} 36. Rd8 {[%clk 0:00:09]}  Be4 {[%clk 0:00:06]} 37. Rd4 {[%clk 0:00:08]}  Ba8 {[%clk 0:00:06]} 38. Rd3 {[%clk 0:00:08]}  Rf5 {[%clk 0:00:05]} 39. Rd7+ {[%clk 0:00:06]}  Kh6 {[%clk 0:00:04]} 40. Ra7 {[%clk 0:00:05]}  Bf3+ {[%clk 0:00:04]} 41. Ke3 {[%clk 0:00:05]}  Bg2 {[%clk 0:00:04]} 42. a6 {[%clk 0:00:03]}  Rf3+ {[%clk 0:00:04]} 43. Kd4 {[%clk 0:00:03]}  Rxg3 {[%clk 0:00:05]} 44. Bd7 {[%clk 0:00:02]}  Ra3 {[%clk 0:00:04]} 45. Kc5 {[%clk 0:00:03]}  Bf1 {[%clk 0:00:05]} 46. Bb5 {[%clk 0:00:02]}  Bg2 {[%clk 0:00:04]} 47. Rc7 {[%clk 0:00:02]}  Rc3+ {[%clk 0:00:04]} 48. Kb6 {[%clk 0:00:02]}  Ra3 {[%clk 0:00:05]} 49. a7 {[%clk 0:00:02]}  Bf3 {[%clk 0:00:04]} 50. Rc8 {[%clk 0:00:02]}  Be4 {[%clk 0:00:04]} 51. Bc6 {[%clk 0:00:03]}  Rb3+ {[%clk 0:00:04]} 52. Kc7 {[%clk 0:00:02]}  Ra3 {[%clk 0:00:04]} 53. Bxe4 {[%clk 0:00:02]}  Rxa7+ {[%clk 0:00:04]} 54. Kb6 {[%clk 0:00:03]}  Ra4 {[%clk 0:00:05]} 55. Bc6 {[%clk 0:00:02]}  Rxh4 {[%clk 0:00:06]} 56. Re8 {[%clk 0:00:02]}  Rg4 {[%clk 0:00:06]} 57. Kc5 {[%clk 0:00:02]}  Kg5 {[%clk 0:00:06]} 58. Bd5 {[%clk 0:00:02]}  Rf4 {[%clk 0:00:06]} 59. Kd6 {[%clk 0:00:02]}  Rf6+ {[%clk 0:00:07]} 60. Ke5 {[%clk 0:00:03]}  Rf5+ {[%clk 0:00:07]} 61. Kd4 {[%clk 0:00:03]}  Rf6 {[%clk 0:00:08]} 62. Be4 {[%clk 0:00:03]}  Rf4 {[%clk 0:00:07]} 63. Ke3 {[%clk 0:00:04]}  Rf6 {[%clk 0:00:07]} 64. Re5+ {[%clk 0:00:04]}  Kh6 {[%clk 0:00:08]} 65. Bf3 {[%clk 0:00:04]}  Kg7 {[%clk 0:00:08]} 66. Kf2 {[%clk 0:00:04]}  Kh6 {[%clk 0:00:08]} 67. Kg3 {[%clk 0:00:05]}  Kg7 {[%clk 0:00:09]} 68. Ra5 {[%clk 0:00:05]}  Kh6 {[%clk 0:00:09]} 69. Be4 {[%clk 0:00:06]}  Re6 {[%clk 0:00:08]} 70. Ra4 {[%clk 0:00:05]}  Rb6 {[%clk 0:00:07]} 71. Kf4 {[%clk 0:00:05]}  Rf6+ {[%clk 0:00:08]} 72. Ke5 {[%clk 0:00:05]}  Rb6 {[%clk 0:00:08]} 73. Ra8 {[%clk 0:00:05]}  Rb5+ {[%clk 0:00:08]} 74. Bd5 {[%clk 0:00:05]}  Kg5 {[%clk 0:00:09]} 75. Rg8 {[%clk 0:00:06]}  Rb6 {[%clk 0:00:09]} 76. Be4 {[%clk 0:00:05]}  Ra6 {[%clk 0:00:08]} 77. Kd4 {[%clk 0:00:05]}  Rb6 {[%clk 0:00:09]} 78. Kc5 {[%clk 0:00:04]}  Rf6 {[%clk 0:00:09]} 79. Kd5 {[%clk 0:00:04]}  h4 {[%clk 0:00:09]} 80. Ke5 {[%clk 0:00:04]}  Rb6 {[%clk 0:00:09]} 81. Kd4 {[%clk 0:00:04]}  Rd6+ {[%clk 0:00:09]} 82. Ke3 {[%clk 0:00:05]}  Rf6 {[%clk 0:00:09]} 83. Bf3 {[%clk 0:00:04]}  Re6+ {[%clk 0:00:08]} 84. Kf2 {[%clk 0:00:04]}  Rf6 {[%clk 0:00:08]} 85. Kg2 {[%clk 0:00:05]}  Rd6 {[%clk 0:00:08]} 86. Rf8 {[%clk 0:00:03]}  Rd2+ {[%clk 0:00:08]} 87. Kh3 {[%clk 0:00:04]}  Rd3 {[%clk 0:00:09]} 88. Rf7 {[%clk 0:00:04]}  Rc3 {[%clk 0:00:09]} 89. Kh2 {[%clk 0:00:04]}  Rb3 {[%clk 0:00:09]} 90. Bg2 {[%clk 0:00:04]}  Rc3 {[%clk 0:00:09]} 91. Ra7 {[%clk 0:00:04]}  Rg3 {[%clk 0:00:09]} 92. Ra5+ {[%clk 0:00:04]}  Kh6 {[%clk 0:00:09]} 93. Ra4 {[%clk 0:00:05]}  g5 {[%clk 0:00:09]} 94. Ra6+ {[%clk 0:00:04]}  Kg7 {[%clk 0:00:09]} 95. Be4 {[%clk 0:00:04]}  Rg4 {[%clk 0:00:09]} 96. Bf5 {[%clk 0:00:03]}  Rg3 {[%clk 0:00:09]} 97. Bh3 {[%clk 0:00:02]}  Re3 {[%clk 0:00:08]} 98. Bg2 {[%clk 0:00:02]}  Rg3 {[%clk 0:00:08]} 99. Ra5 {[%clk 0:00:02]}  Kf7 {[%clk 0:00:08]} 100. Ra6 {[%clk 0:00:03]}  Kg7 {[%clk 0:00:08]} 1/2-1/2


[Site "https://www.chess.com"]

[Event "Titled Tuesday Blitz April 4 Early 2023"]
[White "Oleksiyenko, Mykhaylo"]
[Black "Grunberg, Mihai-Lucian"]
[WhiteFideId "4152417"]
[BlackFideId "1204149"]
[WhiteElo "2551"]
[BlackElo "2363"]
[Result "1-0"]
[Round "05"]
[TimeControl "180+2"]
[Date "2023.04.04"]
[WhiteClock "0:00:22"]
[BlackClock "0:00:57"]

1. e4 {[%clk 0:02:38]}  Nf6 {[%clk 0:02:59]} 2. e5 {[%clk 0:02:34]}  Nd5 {[%clk 0:02:59]} 3. d4 {[%clk 0:02:34]}  d6 {[%clk 0:03:00]} 4. c4 {[%clk 0:02:34]}  Nb6 {[%clk 0:03:00]} 5. exd6 {[%clk 0:02:35]}  cxd6 {[%clk 0:03:00]} 6. Nf3 {[%clk 0:02:34]}  g6 {[%clk 0:03:01]} 7. Nc3 {[%clk 0:02:33]}  Bg7 {[%clk 0:03:01]} 8. Be2 {[%clk 0:02:33]}  O-O {[%clk 0:03:02]} 9. O-O {[%clk 0:02:31]}  Nc6 {[%clk 0:03:00]} 10. h3 {[%clk 0:02:27]}  Bf5 {[%clk 0:02:59]} 11. Be3 {[%clk 0:02:17]}  d5 {[%clk 0:02:59]} 12. c5 {[%clk 0:02:10]}  Nc4 {[%clk 0:02:58]} 13. Bxc4 {[%clk 0:01:26]}  dxc4 {[%clk 0:02:58]} 14. d5 {[%clk 0:01:27]}  Na5 {[%clk 0:02:54]} 15. Bd4 {[%clk 0:01:24]}  Bd3 {[%clk 0:02:51]} 16. Bxg7 {[%clk 0:01:22]}  Kxg7 {[%clk 0:02:50]} 17. Re1 {[%clk 0:01:22]}  b6 {[%clk 0:02:38]} 18. b4 {[%clk 0:01:17]}  Nb7 {[%clk 0:02:33]} 19. c6 {[%clk 0:01:15]}  Nd6 {[%clk 0:02:30]} 20. Ne5 {[%clk 0:01:14]}  Bf5 {[%clk 0:02:21]} 21. Qd4 {[%clk 0:01:06]}  Kg8 {[%clk 0:02:13]} 22. Nxc4 {[%clk 0:01:02]}  Nxc4 {[%clk 0:02:08]} 23. Qxc4 {[%clk 0:01:03]}  Rc8 {[%clk 0:02:01]} 24. b5 {[%clk 0:01:02]}  h5 {[%clk 0:01:59]} 25. Qb4 {[%clk 0:00:59]}  Re8 {[%clk 0:01:47]} 26. Re3 {[%clk 0:00:56]}  Qd6 {[%clk 0:01:17]} 27. Qxd6 {[%clk 0:00:46]}  exd6 {[%clk 0:01:17]} 28. Rae1 {[%clk 0:00:46]}  Rxe3 {[%clk 0:01:13]} 29. Rxe3 {[%clk 0:00:46]}  Kf8 {[%clk 0:01:13]} 30. Ne4 {[%clk 0:00:34]}  Bxe4 {[%clk 0:01:05]} 31. Rxe4 {[%clk 0:00:35]}  Rc7 {[%clk 0:01:00]} 32. Kf1 {[%clk 0:00:31]}  a5 {[%clk 0:00:59]} 33. bxa6 {[%clk 0:00:26]}  Ra7 {[%clk 0:00:58]} 34. Rb4 {[%clk 0:00:22]}  Rxa6 {[%clk 0:00:57]} 35. c7 {[%clk 0:00:22]}  Ra8 {[%clk 0:00:57]} 36. Rxb6 {[%clk 0:00:22]} 1-0


[Site "https://www.chess.com"]

[Event "Titled Tuesday Blitz April 4 Early 2023"]
[White "Hasangatin, Ramil"]
[Black "Sharapov, Evgeny"]
[WhiteFideId "4122160"]
[BlackFideId "14103133"]
[WhiteElo "2275"]
[BlackElo "2367"]
[Result "1/2-1/2"]
[Round "05"]
[TimeControl "180+2"]
[Date "2023.04.04"]
[WhiteClock "0:00:45"]
[BlackClock "0:01:42"]

1. e4 {[%clk 0:03:00]}  c5 {[%clk 0:02:59]} 2. Nf3 {[%clk 0:02:59]}  d6 {[%clk 0:02:59]} 3. d4 {[%clk 0:02:58]}  cxd4 {[%clk 0:03:00]} 4. Qxd4 {[%clk 0:02:59]}  e5 {[%clk 0:02:59]} 5. Bb5+ {[%clk 0:02:58]}  Nd7 {[%clk 0:02:58]} 6. Qd3 {[%clk 0:02:57]}  h6 {[%clk 0:02:58]} 7. c4 {[%clk 0:02:57]}  Nf6 {[%clk 0:02:58]} 8. Nc3 {[%clk 0:02:58]}  Be7 {[%clk 0:02:58]} 9. Nd2 {[%clk 0:02:57]}  O-O {[%clk 0:02:58]} 10. Bxd7 {[%clk 0:02:57]}  Bxd7 {[%clk 0:02:58]} 11. Nf1 {[%clk 0:02:57]}  a6 {[%clk 0:02:58]} 12. Ne3 {[%clk 0:02:57]}  b5 {[%clk 0:02:55]} 13. cxb5 {[%clk 0:02:56]}  axb5 {[%clk 0:02:55]} 14. O-O {[%clk 0:02:54]}  b4 {[%clk 0:02:52]} 15. Ncd5 {[%clk 0:02:54]}  Nxd5 {[%clk 0:02:51]} 16. Nxd5 {[%clk 0:02:54]}  Rb8 {[%clk 0:02:44]} 17. Rd1 {[%clk 0:02:53]}  Bg5 {[%clk 0:02:41]} 18. Be3 {[%clk 0:02:33]}  Bb5 {[%clk 0:02:33]} 19. Qb3 {[%clk 0:02:32]}  Bxe3 {[%clk 0:02:24]} 20. Nxe3 {[%clk 0:02:22]}  Bc6 {[%clk 0:02:22]} 21. Nd5 {[%clk 0:02:10]}  Bxd5 {[%clk 0:02:19]} 22. Qxd5 {[%clk 0:02:08]}  Rb6 {[%clk 0:02:06]} 23. a4 {[%clk 0:02:04]}  bxa3 {[%clk 0:02:05]} 24. bxa3 {[%clk 0:02:04]}  Ra6 {[%clk 0:02:03]} 25. a4 {[%clk 0:02:03]}  Qa5 {[%clk 0:01:59]} 26. f3 {[%clk 0:01:33]}  Rfa8 {[%clk 0:01:56]} 27. Qc4 {[%clk 0:01:20]}  Qc5+ {[%clk 0:01:51]} 28. Qxc5 {[%clk 0:01:19]}  dxc5 {[%clk 0:01:51]} 29. Rd5 {[%clk 0:00:45]}  Rxa4 {[%clk 0:01:50]} 30. Rxa4 {[%clk 0:00:43]}  Rxa4 {[%clk 0:01:49]} 31. Rxc5 {[%clk 0:00:44]}  f6 {[%clk 0:01:48]} 32. Rc7 {[%clk 0:00:44]}  Ra2 {[%clk 0:01:46]} 33. h4 {[%clk 0:00:43]}  h5 {[%clk 0:01:46]} 34. Kh2 {[%clk 0:00:44]}  Kh7 {[%clk 0:01:44]} 35. Kg3 {[%clk 0:00:44]}  Kg6 {[%clk 0:01:43]} 36. Rd7 {[%clk 0:00:44]}  Rb2 {[%clk 0:01:43]} 37. Rc7 {[%clk 0:00:45]}  Ra2 {[%clk 0:01:43]} 38. Rd7 {[%clk 0:00:45]}  Rc2 {[%clk 0:01:43]} 39. Rb7 {[%clk 0:00:45]}  Rd2 {[%clk 0:01:42]} 40. Rc7 {[%clk 0:00:45]}  Rb2 {[%clk 0:01:42]} 41. Rd7 {[%clk 0:00:45]}  Ra2 {[%clk 0:01:42]} 42. Rc7 {[%clk 0:00:45]}  Rb2 {[%clk 0:01:42]} 43. Rd7 {[%clk 0:00:45]}  Ra2 {[%clk 0:01:42]} 44. Rc7 {[%clk 0:00:45]}  Rb2 {[%clk 0:01:42]} 1/2-1/2


[Site "https://www.chess.com"]

[Event "Titled Tuesday Blitz April 4 Early 2023"]
[White "Eynullayev, Atilla"]
[Black "Horvath, Dominik"]
[WhiteFideId "13413570"]
[BlackFideId "1642561"]
[WhiteElo "2181"]
[BlackElo "2407"]
[Result "0-1"]
[Round "05"]
[TimeControl "180+2"]
[Date "2023.04.04"]
[WhiteClock "0:00:01"]
[BlackClock "0:00:18"]

1. d4 {[%clk 0:03:00]}  Nf6 {[%clk 0:02:59]} 2. c4 {[%clk 0:03:01]}  e6 {[%clk 0:02:58]} 3. Nc3 {[%clk 0:03:01]}  Bb4 {[%clk 0:02:57]} 4. e3 {[%clk 0:03:02]}  O-O {[%clk 0:02:51]} 5. Bd3 {[%clk 0:03:02]}  c5 {[%clk 0:02:50]} 6. Nf3 {[%clk 0:03:02]}  d5 {[%clk 0:02:51]} 7. cxd5 {[%clk 0:03:02]}  exd5 {[%clk 0:02:49]} 8. dxc5 {[%clk 0:03:02]}  Nbd7 {[%clk 0:02:49]} 9. Bd2 {[%clk 0:03:02]}  Nxc5 {[%clk 0:02:49]} 10. Be2 {[%clk 0:03:02]}  Ne6 {[%clk 0:02:48]} 11. Qb3 {[%clk 0:03:01]}  Ba5 {[%clk 0:02:40]} 12. O-O {[%clk 0:02:56]}  d4 {[%clk 0:02:35]} 13. exd4 {[%clk 0:02:54]}  Nxd4 {[%clk 0:02:36]} 14. Nxd4 {[%clk 0:02:51]}  Qxd4 {[%clk 0:02:36]} 15. Rad1 {[%clk 0:02:39]}  Qe5 {[%clk 0:01:50]} 16. Rfe1 {[%clk 0:02:04]}  Bc7 {[%clk 0:01:36]} 17. g3 {[%clk 0:02:03]}  Qf5 {[%clk 0:01:25]} 18. Nb5 {[%clk 0:01:15]}  Bb6 {[%clk 0:01:21]} 19. Qf3 {[%clk 0:01:03]}  Qg6 {[%clk 0:00:53]} 20. Be3 {[%clk 0:00:48]}  Bg4 {[%clk 0:00:50]} 21. Qf4 {[%clk 0:00:32]}  Bxe3 {[%clk 0:00:48]} 22. Qxe3 {[%clk 0:00:27]}  Rfe8 {[%clk 0:00:48]} 23. Qd2 {[%clk 0:00:17]}  Ne4 {[%clk 0:00:45]} 24. Qc2 {[%clk 0:00:15]}  Nxg3 {[%clk 0:00:18]} 25. Qxg6 {[%clk 0:00:08]}  Nxe2+ {[%clk 0:00:18]} 26. Rxe2 {[%clk 0:00:08]}  hxg6 {[%clk 0:00:17]} 27. Rxe8+ {[%clk 0:00:07]}  Rxe8 {[%clk 0:00:18]} 28. Rd4 {[%clk 0:00:01]}  Bf3 {[%clk 0:00:18]} 29. Kf1 {[%clk 0:00:01]}  Be2+ {[%clk 0:00:17]} 30. Kg2 {[%clk 0:00:01]}  Bxb5 {[%clk 0:00:18]} 0-1


[Site "https://www.chess.com"]

[Event "Titled Tuesday Blitz April 4 Early 2023"]
[White "Csonka, Balazs"]
[Black "Bayo Milagro, Alvaro"]
[WhiteFideId "742910"]
[BlackFideId "22275240"]
[WhiteElo "2404"]
[BlackElo "2270"]
[Result "1-0"]
[Round "05"]
[TimeControl "180+2"]
[Date "2023.04.04"]
[WhiteClock "0:00:05"]
[BlackClock "0:00:04"]

1. d4 {[%clk 0:03:00]}  Nf6 {[%clk 0:02:59]} 2. Bf4 {[%clk 0:03:00]}  b6 {[%clk 0:02:55]} 3. Nc3 {[%clk 0:02:58]}  Bb7 {[%clk 0:02:55]} 4. f3 {[%clk 0:02:57]}  d5 {[%clk 0:02:51]} 5. e4 {[%clk 0:02:49]}  dxe4 {[%clk 0:02:50]} 6. fxe4 {[%clk 0:02:48]}  Nxe4 {[%clk 0:02:47]} 7. Qf3 {[%clk 0:01:27]}  Nd6 {[%clk 0:02:39]} 8. Bb5+ {[%clk 0:01:27]}  Nd7 {[%clk 0:02:27]} 9. Bc6 {[%clk 0:01:24]}  Bxc6 {[%clk 0:02:17]} 10. Qxc6 {[%clk 0:01:25]}  e6 {[%clk 0:02:15]} 11. Nf3 {[%clk 0:01:22]}  Be7 {[%clk 0:01:42]} 12. Ne5 {[%clk 0:01:20]}  Rc8 {[%clk 0:01:31]} 13. O-O {[%clk 0:00:58]}  f6 {[%clk 0:01:21]} 14. Rae1 {[%clk 0:00:30]}  fxe5 {[%clk 0:01:01]} 15. Bxe5 {[%clk 0:00:29]}  Bf6 {[%clk 0:00:23]} 16. Bxd6 {[%clk 0:00:14]}  cxd6 {[%clk 0:00:21]} 17. Rxe6+ {[%clk 0:00:13]}  Kf7 {[%clk 0:00:20]} 18. Qd5 {[%clk 0:00:14]}  Kg6 {[%clk 0:00:13]} 19. Ne4 {[%clk 0:00:07]}  Re8 {[%clk 0:00:08]} 20. Qf5+ {[%clk 0:00:05]}  Kf7 {[%clk 0:00:08]} 21. Ng5+ {[%clk 0:00:05]}  Kf8 {[%clk 0:00:04]} 22. Qxh7 {[%clk 0:00:06]}  Rxe6 {[%clk 0:00:03]} 23. Nxe6+ {[%clk 0:00:06]}  Ke7 {[%clk 0:00:03]} 24. Nxd8 {[%clk 0:00:07]}  Kxd8 {[%clk 0:00:04]} 25. c3 {[%clk 0:00:05]}  Kc7 {[%clk 0:00:04]} 26. Rxf6 {[%clk 0:00:05]}  gxf6 {[%clk 0:00:03]} 27. h4 {[%clk 0:00:06]}  b5 {[%clk 0:00:03]} 28. h5 {[%clk 0:00:06]}  Re8 {[%clk 0:00:04]} 29. h6 {[%clk 0:00:06]}  Re2 {[%clk 0:00:04]} 30. Qg7 {[%clk 0:00:05]}  Kc6 {[%clk 0:00:04]} 31. h7 {[%clk 0:00:05]} 1-0


[Site "https://www.chess.com"]

[Event "Titled Tuesday Blitz April 4 Early 2023"]
[White "Tifferet, Shaked"]
[Black "Skvortsov, Andrei"]
[WhiteFideId "2811529"]
[BlackFideId "24108600"]
[WhiteElo "2142"]
[BlackElo "2259"]
[Result "1/2-1/2"]
[Round "05"]
[TimeControl "180+2"]
[Date "2023.04.04"]
[WhiteClock "0:00:20"]
[BlackClock "0:00:34"]

1. d4 {[%clk 0:03:00]}  g6 {[%clk 0:02:59]} 2. e4 {[%clk 0:02:56]}  Bg7 {[%clk 0:02:58]} 3. Nf3 {[%clk 0:02:55]}  e6 {[%clk 0:02:50]} 4. c3 {[%clk 0:02:41]}  a6 {[%clk 0:02:42]} 5. h4 {[%clk 0:02:35]}  h6 {[%clk 0:02:41]} 6. Nbd2 {[%clk 0:02:28]}  b6 {[%clk 0:02:40]} 7. Bd3 {[%clk 0:02:28]}  Bb7 {[%clk 0:02:39]} 8. Qe2 {[%clk 0:02:25]}  d6 {[%clk 0:02:38]} 9. Nf1 {[%clk 0:02:19]}  Nd7 {[%clk 0:02:35]} 10. Ng3 {[%clk 0:02:18]}  c5 {[%clk 0:02:34]} 11. Be3 {[%clk 0:02:14]}  Ne7 {[%clk 0:02:31]} 12. Rd1 {[%clk 0:02:11]}  Qc7 {[%clk 0:02:30]} 13. O-O {[%clk 0:02:05]}  b5 {[%clk 0:02:28]} 14. a3 {[%clk 0:02:00]}  Nf6 {[%clk 0:02:24]} 15. Nh2 {[%clk 0:01:54]}  d5 {[%clk 0:01:57]} 16. exd5 {[%clk 0:01:46]}  c4 {[%clk 0:01:46]} 17. dxe6 {[%clk 0:01:34]}  cxd3 {[%clk 0:01:44]} 18. exf7+ {[%clk 0:01:35]}  Kxf7 {[%clk 0:01:43]} 19. Qxd3 {[%clk 0:01:28]}  Qc6 {[%clk 0:01:38]} 20. f3 {[%clk 0:01:25]}  Ned5 {[%clk 0:01:38]} 21. Bc1 {[%clk 0:01:23]}  Rhe8 {[%clk 0:01:38]} 22. Rde1 {[%clk 0:01:19]}  Rxe1 {[%clk 0:01:34]} 23. Rxe1 {[%clk 0:01:20]}  Re8 {[%clk 0:01:33]} 24. Rf1 {[%clk 0:01:18]}  Bc8 {[%clk 0:01:21]} 25. Ne4 {[%clk 0:00:53]}  Kg8 {[%clk 0:01:06]} 26. Re1 {[%clk 0:00:46]}  Bf5 {[%clk 0:01:02]} 27. g4 {[%clk 0:00:38]}  Bd7 {[%clk 0:00:56]} 28. Nf1 {[%clk 0:00:21]}  Nb6 {[%clk 0:00:49]} 29. Nfg3 {[%clk 0:00:18]}  Nc4 {[%clk 0:00:47]} 30. Kf2 {[%clk 0:00:16]}  Nd5 {[%clk 0:00:38]} 31. h5 {[%clk 0:00:13]}  g5 {[%clk 0:00:35]} 32. Nc5 {[%clk 0:00:08]}  Rxe1 {[%clk 0:00:33]} 33. Kxe1 {[%clk 0:00:09]}  Be8 {[%clk 0:00:29]} 34. Nf5 {[%clk 0:00:04]}  Bf8 {[%clk 0:00:29]} 35. Qe4 {[%clk 0:00:05]}  Ncb6 {[%clk 0:00:20]} 36. Ne6 {[%clk 0:00:02]}  Nf6 {[%clk 0:00:16]} 37. Qe5 {[%clk 0:00:01]}  Nbd7 {[%clk 0:00:15]} 38. Nxf8 {[%clk 0:00:01]}  Nxe5 {[%clk 0:00:14]} 39. dxe5 {[%clk 0:00:02]}  Kxf8 {[%clk 0:00:14]} 40. exf6 {[%clk 0:00:02]}  Qxf3 {[%clk 0:00:14]} 41. Be3 {[%clk 0:00:01]}  Qxg4 {[%clk 0:00:13]} 42. Bc5+ {[%clk 0:00:01]}  Kf7 {[%clk 0:00:10]} 43. Nxh6+ {[%clk 0:00:02]}  Kxf6 {[%clk 0:00:11]} 44. Nxg4+ {[%clk 0:00:03]}  Kf5 {[%clk 0:00:11]} 45. Ne3+ {[%clk 0:00:02]}  Ke4 {[%clk 0:00:10]} 46. h6 {[%clk 0:00:01]}  Bg6 {[%clk 0:00:10]} 47. Bd4 {[%clk 0:00:01]}  Kf4 {[%clk 0:00:09]} 48. Kf2 {[%clk 0:00:01]}  g4 {[%clk 0:00:10]} 49. Kg2 {[%clk 0:00:02]}  Bh7 {[%clk 0:00:10]} 50. Bg7 {[%clk 0:00:02]}  Kg5 {[%clk 0:00:10]} 51. Nd5 {[%clk 0:00:02]}  a5 {[%clk 0:00:10]} 52. Nf6 {[%clk 0:00:03]}  Bd3 {[%clk 0:00:09]} 53. b4 {[%clk 0:00:04]}  axb4 {[%clk 0:00:09]} 54. cxb4 {[%clk 0:00:05]}  Kg6 {[%clk 0:00:09]} 55. Nd5 {[%clk 0:00:05]}  Be4+ {[%clk 0:00:09]} 56. Kg3 {[%clk 0:00:06]}  Bxd5 {[%clk 0:00:09]} 57. Kxg4 {[%clk 0:00:07]}  Bb3 {[%clk 0:00:10]} 58. Kf4 {[%clk 0:00:08]}  Ba4 {[%clk 0:00:10]} 59. Ke5 {[%clk 0:00:08]}  Kh7 {[%clk 0:00:11]} 60. Kd4 {[%clk 0:00:09]}  Kg6 {[%clk 0:00:12]} 61. Kc5 {[%clk 0:00:09]}  Kh7 {[%clk 0:00:12]} 62. Kd6 {[%clk 0:00:10]}  Kg6 {[%clk 0:00:13]} 63. Ke7 {[%clk 0:00:11]}  Kh7 {[%clk 0:00:14]} 64. Kf8 {[%clk 0:00:11]}  Bd1 {[%clk 0:00:13]} 65. Ke8 {[%clk 0:00:12]}  Ba4 {[%clk 0:00:14]} 66. Kd7 {[%clk 0:00:12]}  Bd1 {[%clk 0:00:15]} 67. Kd6 {[%clk 0:00:13]}  Ba4 {[%clk 0:00:16]} 68. Kc5 {[%clk 0:00:13]}  Kg6 {[%clk 0:00:16]} 69. Kd5 {[%clk 0:00:12]}  Kh7 {[%clk 0:00:17]} 70. Ke5 {[%clk 0:00:12]}  Kg6 {[%clk 0:00:17]} 71. Kf4 {[%clk 0:00:13]}  Kh7 {[%clk 0:00:18]} 72. Kg5 {[%clk 0:00:13]}  Bd1 {[%clk 0:00:17]} 73. Bd4 {[%clk 0:00:14]}  Ba4 {[%clk 0:00:18]} 74. Be3 {[%clk 0:00:14]}  Bb3 {[%clk 0:00:19]} 75. Kf6 {[%clk 0:00:15]}  Ba4 {[%clk 0:00:20]} 76. Ke5 {[%clk 0:00:15]}  Bb3 {[%clk 0:00:20]} 77. Kd4 {[%clk 0:00:16]}  Ba4 {[%clk 0:00:21]} 78. Kc3 {[%clk 0:00:17]}  Kg6 {[%clk 0:00:22]} 79. Kd2 {[%clk 0:00:17]}  Kh7 {[%clk 0:00:23]} 80. Kd3 {[%clk 0:00:17]}  Kg6 {[%clk 0:00:24]} 81. Kd4 {[%clk 0:00:18]}  Kh7 {[%clk 0:00:24]} 82. Kc5 {[%clk 0:00:19]}  Kg6 {[%clk 0:00:25]} 83. Kd6 {[%clk 0:00:19]}  Kh7 {[%clk 0:00:26]} 84. Ke7 {[%clk 0:00:20]}  Bb3 {[%clk 0:00:26]} 85. Kd7 {[%clk 0:00:18]}  Ba4 {[%clk 0:00:27]} 86. Bd2 {[%clk 0:00:18]}  Kg6 {[%clk 0:00:27]} 87. Kc6 {[%clk 0:00:18]}  Kh7 {[%clk 0:00:28]} 88. Kc5 {[%clk 0:00:18]}  Kg6 {[%clk 0:00:28]} 89. Kd4 {[%clk 0:00:18]}  Kh7 {[%clk 0:00:29]} 90. Ke5 {[%clk 0:00:18]}  Kg6 {[%clk 0:00:29]} 91. Kd4 {[%clk 0:00:16]}  Kh7 {[%clk 0:00:30]} 92. Bf4 {[%clk 0:00:16]}  Kg6 {[%clk 0:00:31]} 93. Kc5 {[%clk 0:00:16]}  Kh7 {[%clk 0:00:31]} 94. Kd6 {[%clk 0:00:17]}  Kg6 {[%clk 0:00:31]} 95. Bc1 {[%clk 0:00:17]}  Kh7 {[%clk 0:00:32]} 96. Ke7 {[%clk 0:00:18]}  Bb3 {[%clk 0:00:31]} 97. Kf8 {[%clk 0:00:18]}  Ba4 {[%clk 0:00:32]} 98. Ke8 {[%clk 0:00:18]}  Bb3 {[%clk 0:00:32]} 99. Kd7 {[%clk 0:00:18]}  Ba4 {[%clk 0:00:33]} 100. Bd2 {[%clk 0:00:18]}  Kg6 {[%clk 0:00:33]} 101. Be3 {[%clk 0:00:19]}  Kh7 {[%clk 0:00:33]} 102. Kc6 {[%clk 0:00:20]}  Kg6 {[%clk 0:00:33]} 103. Kc5 {[%clk 0:00:20]}  Kh7 {[%clk 0:00:34]} 104. Kd5 {[%clk 0:00:20]}  Kg6 {[%clk 0:00:34]} 105. Ke5 {[%clk 0:00:20]}  Kh7 {[%clk 0:00:34]} 106. Kf5 {[%clk 0:00:20]}  Bc2+ {[%clk 0:00:34]} 107. Kg5 {[%clk 0:00:20]} 1/2-1/2


[Site "https://www.chess.com"]